fUST/lending_fUST_20250901
["ID","MTS","AMOUNT","RATE_DAILY","PERIOD"]
[382543730,1756662643953,-500.0,0.00017173,2]
[382543731,1756662643962,-500.0,0.00017173,2]
[382543732,1756662643971,-248.69622921,0.00017173,2]
[382543733,1756662643980,-619.28300412,0.00017173,2]
[382543734,1756662643990,-500.0,0.00017173,2]
[382543735,1756662643999,-198.0,0.00017173,2]
[382543736,1756662644008,-553.64224544,0.00017173,2]
[382543737,1756662644017,-151.0,0.00017173,2]
[382543738,1756662644027,-198.0,0.00017173,2]
[382543739,1756662644036,-500.0,0.00017173,2]
[382543740,1756662644046,-151.0,0.00017173,2]
[382543741,1756662644055,-1574.0,0.00017173,2]
[382543742,1756662644065,-500.0,0.00017173,2]
[382543743,1756662644075,-480.0,0.00017173,2]
[382543744,1756662644084,-560.75,0.00017173,2]
[382543745,1756662644094,-500.7,0.00017173,2]
[382543746,1756662644103,-1535.25,0.00017173,2]
[382543747,1756662644112,-830.21,0.00017173,2]
[382543748,1756662644122,-404.65764314,0.00017173,2]
[382543749,1756662644131,-1026.66,0.00017173,2]
[382543750,1756662644141,-1061.68,0.00017173,2]
[382543751,1756662644150,-863.59,0.00017173,2]
[382543752,1756662644159,-480.0,0.00017173,2]
[382543753,1756662644168,-480.0,0.00017173,2]
[382543754,1756662644178,-480.0,0.00017173,2]
[382543755,1756662644187,-480.0,0.00017173,2]
[382543756,1756662644196,-577.87,0.00017173,2]
[382543757,1756662644206,-716.35,0.00017173,2]
[382543758,1756662644215,-592.06,0.00017173,2]
[382543759,1756662644224,-480.0,0.00017173,2]
[382543760,1756662644233,-947.86,0.00017173,2]
[382543761,1756662644243,-480.0,0.00017173,2]
[382543762,1756662644252,-552.29,0.00017173,2]
[382543763,1756662644262,-758.47,0.00017173,2]
[382543764,1756662644271,-988.32,0.00017173,2]
[382543765,1756662644281,-1000.08,0.00017173,2]
[382543766,1756662644291,-480.0,0.00017173,2]
[382543767,1756662644300,-612.9,0.00017173,2]
[382543768,1756662644309,-481.14,0.00017173,2]
[382543769,1756662644320,-982.91,0.00017173,2]
[382543770,1756662644329,-480.0,0.00017173,2]
[382543771,1756662644527,-480.0,0.00017173,2]
[382543772,1756662644542,-642.73,0.00017173,2]
[382543773,1756662644552,-5625.66,0.00017173,2]
[382543774,1756662644561,-843.32,0.00017173,2]
[382543775,1756662644570,-780.12,0.00017173,2]
[382543776,1756662644580,-480.0,0.00017173,2]
[382543777,1756662644589,-1246.19,0.00017173,2]
[382543778,1756662644598,-930.4,0.00017173,2]
[382543779,1756662644608,-886.04,0.00017173,2]
[382543780,1756662644617,-480.0,0.00017173,2]
[382543781,1756662644627,-487.07,0.00017173,2]
[382543782,1756662644637,-480.0,0.00017173,2]
[382543783,1756662644647,-4502.01,0.00017173,2]
[382543784,1756662644657,-962.0,0.00017173,2]
[382543785,1756662644667,-480.0,0.00017173,2]
[382543786,1756662644685,-1206.19,0.00017173,2]
[382543787,1756662644694,-480.0,0.00017173,2]
[382543789,1756662644704,-3976.29,0.00017173,2]
[382543790,1756662644716,-863.27,0.00017173,2]
[382543791,1756662644726,-1924.91,0.00017173,2]
[382543792,1756662644736,-869.81,0.00017173,2]
[382543794,1756662644746,-579.42,0.00017173,2]
[382543796,1756662644756,-934.52,0.00017173,2]
[382543798,1756662644765,-480.0,0.00017173,2]
[382543800,1756662644774,-480.0,0.00017173,2]
[382543802,1756662644783,-480.0,0.00017173,2]
[382543804,1756662644792,-671.36,0.00017173,2]
[382543806,1756662644802,-3808.79,0.00017173,2]
[382543808,1756662644811,-480.0,0.00017173,2]
[382543810,1756662644820,-523.88,0.00017173,2]
[382543812,1756662644829,-480.0,0.00017173,2]
[382543814,1756662644839,-1099.05,0.00017173,2]
[382543816,1756662644848,-1613.13,0.00017173,2]
[382543818,1756662644857,-500.96,0.00017173,2]
[382543821,1756662644868,-168.0,0.00017192,2]
[382543823,1756662644878,-151.0,0.000172,2]
[382543824,1756662644887,-151.0,0.000172,2]
[382543826,1756662644896,-151.0,0.000172,2]
[382543828,1756662644906,-349.0,0.0001721,2]
[382543830,1756662644915,-480.0,0.00017247,2]
[382543832,1756662644925,-480.0,0.00017247,2]
[382543834,1756662644935,-480.0,0.00017247,2]
[382543836,1756662644944,-480.0,0.00017247,2]
[382543838,1756662644953,-480.0,0.00017247,2]
[382543840,1756662644963,-480.0,0.00017247,2]
[382543842,1756662644972,-870.54,0.00017247,2]
[382543844,1756662644981,-480.0,0.00017247,2]
[382543846,1756662644990,-480.0,0.00017247,2]
[382543848,1756662645000,-480.0,0.00017247,2]
[382543850,1756662645010,-535.44103704,0.00017247,2]
[382543852,1756662645019,-480.0,0.00017247,2]
[382543854,1756662645028,-480.0,0.00017247,2]
[382543856,1756662645038,-480.0,0.00017247,2]
[382543858,1756662645047,-480.0,0.00017247,2]
[382543859,1756662645057,-282.73421444,0.00017247,2]
[382543860,1756662645066,-480.0,0.00017247,2]
[382543861,1756662645076,-480.0,0.00017247,2]
[382543862,1756662645086,-480.0,0.00017247,2]
[382543863,1756662645095,-480.0,0.00017247,2]
[382543864,1756662645109,-480.0,0.00017247,2]
[382543865,1756662645118,-480.0,0.00017247,2]
[382543866,1756662645128,-480.0,0.00017247,2]
[382543867,1756662645137,-480.0,0.00017247,2]
[382543868,1756662645147,-239.98789527,0.00017247,2]
[382543869,1756662645156,-480.0,0.00017247,2]
[382543870,1756662645166,-1170.25,0.00017247,2]
[382543871,1756662645176,-480.0,0.00017247,2]
[382543872,1756662645185,-575.17,0.00017247,2]
[382543873,1756662645195,-480.0,0.00017247,2]
[382543874,1756662645204,-1042.2,0.00017247,2]
[382543875,1756662645214,-480.0,0.00017247,2]
[382543876,1756662645223,-480.0,0.00017247,2]
[382543877,1756662645233,-836.43,0.00017247,2]
[382543878,1756662645243,-480.0,0.00017247,2]
[382543880,1756662645252,-641.27,0.00017247,2]
[382543881,1756662645261,-480.0,0.00017247,2]
[382543882,1756662645270,-480.0,0.00017247,2]
[382543883,1756662645280,-480.0,0.00017247,2]
[382543884,1756662645289,-480.0,0.00017247,2]
[382543885,1756662645299,-480.0,0.00017247,2]
[382543886,1756662645308,-503.27,0.00017247,2]
[382543887,1756662645317,-480.0,0.00017247,2]
[382543888,1756662645326,-1326.23,0.00017247,2]
[382543889,1756662645335,-480.0,0.00017247,2]
[382543890,1756662645345,-480.0,0.00017247,2]
[382543891,1756662645354,-480.0,0.00017247,2]
[382543892,1756662645363,-480.0,0.00017247,2]
[382543893,1756662645372,-970.45,0.00017247,2]
[382543894,1756662645382,-480.0,0.00017247,2]
[382543895,1756662645391,-1278.8,0.00017247,2]
[382543896,1756662645400,-896.92,0.00017247,2]
[382543897,1756662645409,-855.29,0.00017247,2]
[382543898,1756662645419,-480.0,0.00017247,2]
[382543899,1756662645428,-480.0,0.00017247,2]
[382543900,1756662645437,-480.0,0.00017247,2]
[382543901,1756662645447,-1104.35,0.00017247,2]
[382543902,1756662645456,-480.0,0.00017247,2]
[382543903,1756662645466,-1223.09,0.00017247,2]
[382543904,1756662645475,-480.0,0.00017247,2]
[382543905,1756662645484,-480.0,0.00017247,2]
[382543906,1756662645494,-480.0,0.00017247,2]
[382543907,1756662645503,-480.0,0.00017247,2]
[382543908,1756662645513,-597.93,0.00017247,2]
[382543909,1756662645523,-416.68614184,0.00017247,2]
[382543910,1756662645533,-480.0,0.00017247,2]
[382543911,1756662645545,-607.63,0.00017247,2]
[382543912,1756662645554,-480.0,0.00017247,2]
[382543913,1756662645563,-480.0,0.00017247,2]
[382543914,1756662645573,-480.0,0.00017247,2]
[382543915,1756662645582,-480.0,0.00017247,2]
[382543916,1756662645592,-480.0,0.00017247,2]
[382543917,1756662645601,-480.0,0.00017247,2]
[382543918,1756662645611,-480.0,0.00017247,2]
[382543919,1756662645621,-595.91,0.00017247,2]
[382543920,1756662645630,-480.0,0.00017247,2]
[382543921,1756662645640,-480.0,0.00017247,2]
[382543922,1756662645650,-480.0,0.00017247,2]
[382543923,1756662645660,-1210.98,0.00017247,2]
[382543924,1756662645674,-499.1,0.00017247,2]
[382543925,1756662645683,-537.01,0.00017247,2]
[382543926,1756662645693,-480.0,0.00017247,2]
[382543928,1756662645703,-480.0,0.00017247,2]
[382543929,1756662645714,-480.0,0.00017247,2]
[382543930,1756662645723,-1125.96,0.00017247,2]
[382543931,1756662645733,-480.0,0.00017247,2]
[382543933,1756662645744,-480.0,0.00017247,2]
[382543934,1756662645754,-1004.23,0.00017247,2]
[382543935,1756662645764,-972.45,0.00017247,2]
[382543936,1756662645773,-480.0,0.00017247,2]
[382543938,1756662645783,-240.98376815,0.00017247,2]
[382543939,1756662645792,-613.9538047,0.00017247,2]
[382543940,1756662645801,-411.61085373,0.00017247,2]
[382543942,1756662645810,-1021.35,0.00017247,2]
[382543944,1756662645820,-480.0,0.00017247,2]
[382543946,1756662645829,-480.0,0.00017247,2]
[382543947,1756662645839,-821.44,0.00017247,2]
[382543949,1756662645848,-480.0,0.00017247,2]
[382543951,1756662645857,-1143.96,0.00017247,2]
[382543953,1756662645867,-480.0,0.00017247,2]
[382543955,1756662645876,-994.87,0.00017247,2]
[382543957,1756662645886,-1259.19,0.00017247,2]
[382543959,1756662645895,-480.0,0.00017247,2]
[382543961,1756662645904,-715.77,0.00017247,2]
[382543963,1756662645914,-2867.49,0.00017247,2]
[382543965,1756662645923,-480.0,0.00017247,2]
[382543967,1756662645933,-566.17,0.00017247,2]
[382543969,1756662645943,-480.0,0.00017247,2]
[382543971,1756662645952,-957.81,0.00017247,2]
[382543973,1756662645962,-523.12,0.00017247,2]
[382543975,1756662645971,-480.0,0.00017247,2]
[382543977,1756662645981,-480.0,0.00017247,2]
[382543979,1756662645990,-480.0,0.00017247,2]
[382543981,1756662646000,-949.15,0.00017247,2]
[382543983,1756662646010,-594.29,0.00017247,2]
[382543985,1756662646019,-480.0,0.00017247,2]
[382543987,1756662646029,-480.0,0.00017247,2]
[382543989,1756662646039,-480.0,0.00017247,2]
[382543991,1756662646048,-480.0,0.00017247,2]
[382543993,1756662646057,-480.0,0.00017247,2]
[382543995,1756662646066,-853.04,0.00017247,2]
[382543997,1756662646075,-1863.15,0.00017247,2]
[382543999,1756662646084,-664.69,0.00017247,2]
[382544001,1756662646094,-1656.77,0.00017247,2]
[382544003,1756662646103,-480.0,0.00017247,2]
[382544005,1756662646112,-480.0,0.00017247,2]
[382544007,1756662646122,-480.0,0.00017247,2]
[382544009,1756662646131,-1019.57,0.00017247,2]
[382544011,1756662646141,-792.45,0.00017247,2]
[382544014,1756662646150,-480.0,0.00017247,2]
[382544016,1756662646159,-480.0,0.00017247,2]
[382544018,1756662646168,-480.0,0.00017247,2]
[382544020,1756662646177,-480.0,0.00017247,2]
[382544022,1756662646187,-571.1,0.00017247,2]
[382544024,1756662646195,-480.0,0.00017247,2]
[382544026,1756662646204,-480.0,0.00017247,2]
[382544028,1756662646214,-550.73,0.00017247,2]
[382544030,1756662646223,-480.0,0.00017247,2]
[382544032,1756662646233,-584.07,0.00017247,2]
[382544034,1756662646242,-480.0,0.00017247,2]
[382544036,1756662646251,-327.95776458,0.00017247,2]
[382544038,1756662646260,-1179.81,0.00017247,2]
[382544040,1756662646269,-1115.84,0.00017247,2]
[382544042,1756662646278,-705.78,0.00017247,2]
[382544043,1756662646287,-480.0,0.00017247,2]
[382544045,1756662646297,-518.21,0.00017247,2]
[382544047,1756662646306,-480.0,0.00017247,2]
[382544049,1756662646315,-480.0,0.00017247,2]
[382544051,1756662646325,-480.0,0.00017247,2]
[382544053,1756662646334,-495.85,0.00017247,2]
[382544055,1756662646343,-551.72,0.00017247,2]
[382544057,1756662646353,-480.0,0.00017247,2]
[382544059,1756662646363,-480.0,0.00017247,2]
[382544061,1756662646372,-480.0,0.00017247,2]
[382544063,1756662646381,-529.43,0.00017247,2]
[382544065,1756662646390,-1154.41,0.00017247,2]
[382544067,1756662646399,-500.0,0.00017247,2]
[382544069,1756662646408,-500.0,0.00017247,2]
[382544071,1756662646418,-1176.42,0.00017247,2]
[382544073,1756662646427,-578.50855936,0.00017247,2]
[382544075,1756662646437,-480.0,0.00017247,2]
[382544077,1756662646446,-480.0,0.00017247,2]
[382544079,1756662646455,-833.02,0.00017248,2]
[382544081,1756662646464,-1231.2,0.00017248,2]
[382544083,1756662646473,-602.09,0.00017248,2]
[382544085,1756662646483,-615.28,0.00017248,2]
[382544087,1756662646491,-480.0,0.00017248,2]
[382544089,1756662646501,-779.72,0.00017248,2]
[382544091,1756662646511,-718.42,0.00017248,2]
[382544093,1756662646520,-480.0,0.00017248,2]
[382544095,1756662646529,-525.64,0.00017248,2]
[382544097,1756662646538,-480.0,0.00017248,2]
[382544099,1756662646548,-480.0,0.00017248,2]
[382544101,1756662646557,-918.72,0.00017248,2]
[382544103,1756662646567,-608.56,0.00017248,2]
[382544105,1756662646576,-480.0,0.00017248,2]
[382544107,1756662646586,-480.0,0.00017248,2]
[382544109,1756662646596,-480.0,0.00017248,2]
[382544111,1756662646606,-861.48,0.00017248,2]
[382544113,1756662646615,-948.15,0.00017248,2]
[382544115,1756662646624,-1583.22,0.00017248,2]
[382544117,1756662646634,-480.0,0.00017248,2]
[382544119,1756662646643,-480.0,0.00017248,2]
[382544121,1756662646653,-480.0,0.00017248,2]
[382544123,1756662646662,-480.0,0.00017248,2]
[382544125,1756662646675,-639.7,0.00017248,2]
[382544127,1756662646684,-480.0,0.00017248,2]
[382544129,1756662646694,-480.0,0.00017248,2]
[382544131,1756662646703,-480.0,0.00017248,2]
[382544133,1756662646713,-480.0,0.00017248,2]
[382544135,1756662646724,-480.0,0.00017248,2]
[382544137,1756662646733,-523.03,0.00017248,2]
[382544139,1756662646742,-480.0,0.00017248,2]
[382544141,1756662646752,-480.0,0.00017248,2]
[382544143,1756662646762,-581.56,0.00017248,2]
[382544145,1756662646772,-690.27,0.00017248,2]
[382544147,1756662646781,-798.39,0.00017248,2]
[382544149,1756662646790,-480.0,0.00017249,2]
[382544151,1756662646799,-480.0,0.00017249,2]
[382544153,1756662646808,-480.0,0.00017249,2]
[382544155,1756662646817,-1155.33,0.00017249,2]
[382544157,1756662646827,-480.0,0.00017249,2]
[382544159,1756662646836,-583.72,0.00017249,2]
[382544161,1756662646846,-480.0,0.00017249,2]
[382544163,1756662646855,-480.0,0.00017249,2]
[382544165,1756662646864,-480.0,0.00017249,2]
[382544167,1756662646873,-480.0,0.00017249,2]
[382544169,1756662646885,-480.0,0.00017249,2]
[382544172,1756662646895,-480.0,0.00017249,2]
[382544174,1756662646904,-602.86568468,0.00017249,2]
[382544176,1756662646913,-655.14,0.00017249,2]
[382544178,1756662646922,-480.0,0.00017249,2]
[382544180,1756662646931,-490.94,0.00017249,2]
[382544182,1756662646941,-480.0,0.00017249,2]
[382544184,1756662646950,-480.0,0.00017249,2]
[382544186,1756662646958,-480.0,0.00017249,2]
[382544188,1756662646967,-480.0,0.00017249,2]
[382544190,1756662646976,-480.0,0.00017249,2]
[382544192,1756662646985,-480.0,0.00017249,2]
[382544194,1756662646994,-271.31029319,0.00017249,2]
[382544196,1756662647004,-480.0,0.00017249,2]
[382544197,1756662647014,-480.0,0.00017249,2]
[382544199,1756662647025,-480.0,0.00017249,2]
[382544201,1756662647034,-232.24603415,0.00017249,2]
[382544204,1756662647047,-626.67,0.00017249,2]
[382544206,1756662647057,-480.0,0.00017249,2]
[382544208,1756662647066,-480.0,0.00017249,2]
[382544210,1756662647076,-480.0,0.00017249,2]
[382544212,1756662647085,-480.0,0.00017249,2]
[382544214,1756662647095,-480.0,0.00017249,2]
[382544216,1756662647103,-480.0,0.00017249,2]
[382544218,1756662647113,-727.06,0.00017249,2]
[382544220,1756662647122,-480.0,0.00017249,2]
[382544222,1756662647131,-480.0,0.00017249,2]
[382544224,1756662647139,-480.0,0.00017249,2]
[382544226,1756662647148,-480.0,0.00017249,2]
[382544228,1756662647157,-480.0,0.00017249,2]
[382544230,1756662647166,-480.0,0.00017249,2]
[382544232,1756662647176,-480.0,0.00017249,2]
[382544234,1756662647185,-812.11,0.00017249,2]
[382544236,1756662647195,-480.0,0.00017249,2]
[382544238,1756662647204,-480.0,0.00017249,2]
[382544240,1756662647213,-480.0,0.00017249,2]
[382544242,1756662647224,-480.0,0.00017249,2]
[382544244,1756662647234,-272.52744143,0.00017249,2]
[382544246,1756662647251,-480.0,0.00017249,2]
[382544248,1756662647261,-480.0,0.00017249,2]
[382544250,1756662647271,-480.0,0.00017249,2]
[382544252,1756662647281,-500.0,0.00017249,2]
[382544254,1756662647291,-480.0,0.00017249,2]
[382544256,1756662647300,-480.0,0.00017249,2]
[382544258,1756662647310,-480.0,0.00017249,2]
[382544260,1756662647319,-598.24666933,0.00017249,2]
[382544262,1756662647328,-480.0,0.00017249,2]
[382544264,1756662647338,-708.59,0.00017249,2]
[382544266,1756662647347,-480.0,0.00017249,2]
[382544268,1756662647357,-480.0,0.00017249,2]
[382544270,1756662647367,-983.22,0.00017249,2]
[382544272,1756662647376,-490.72,0.00017249,2]
[382544274,1756662647385,-480.0,0.00017249,2]
[382544276,1756662647394,-480.0,0.00017249,2]
[382544278,1756662647404,-480.0,0.00017249,2]
[382544280,1756662647413,-480.0,0.00017249,2]
[382544282,1756662647422,-384.98239641,0.00017249,2]
[382544284,1756662647431,-493.56,0.00017249,2]
[382544286,1756662647440,-480.0,0.00017249,2]
[382544288,1756662647450,-480.0,0.00017249,2]
[382544290,1756662647459,-480.0,0.00017249,2]
[382544292,1756662647468,-626.99,0.00017249,2]
[382544294,1756662647477,-1000.0,0.00017249,2]
[382544296,1756662647487,-1000.0,0.00017249,2]
[382544298,1756662647496,-213.02,0.00017249,2]
[382544301,1756662647507,-1288.57,0.00017249,2]
[382544303,1756662647517,-733.21,0.00017249,2]
[382544305,1756662647527,-480.0,0.00017249,2]
[382544307,1756662647536,-480.0,0.00017249,2]
[382544309,1756662647546,-480.0,0.00017249,2]
[382544311,1756662647555,-480.0,0.00017249,2]
[382544313,1756662647565,-480.0,0.00017249,2]
[382544315,1756662647574,-563.37,0.00017249,2]
[382544317,1756662647583,-480.0,0.00017249,2]
[382544319,1756662647592,-480.0,0.00017249,2]
[382544320,1756662647601,-652.63,0.00017249,2]
[382544322,1756662647611,-526.92,0.0001725,2]
[382544324,1756662647620,-480.0,0.0001725,2]
[382544326,1756662647629,-480.0,0.0001725,2]
[382544328,1756662647639,-901.54,0.0001725,2]
[382544330,1756662647648,-480.0,0.0001725,2]
[382544333,1756662647659,-480.0,0.0001725,2]
[382544335,1756662647671,-480.0,0.0001725,2]
[382544337,1756662647681,-480.0,0.0001725,2]
[382544339,1756662647691,-480.0,0.0001725,2]
[382544341,1756662647704,-13074.32693741,0.0001725,2]
[382544523,1756662669891,160.0,0.00022089,30]
[382544525,1756662777265,1127.11914927,0.00013699,2]
[382544526,1756662777287,98.79190773,0.00013699,2]
[382544529,1756662956739,666.0,0.00015797,2]
[382544530,1756662962367,154.58277628,0.0001631,2]
[382544531,1756662995480,679.0,0.000165,2]
[382544532,1756663070821,695.92225578,0.00016269,2]
[382544533,1756663092492,3942.75,0.000165,2]
[382544534,1756663115923,1057.25,0.000165,2]
[382544535,1756663162980,2705.71306021,0.00015797,2]
[382544536,1756663163003,7294.28693979,0.00015797,2]
[382544537,1756663323313,1000.0,0.00015785,2]
[382544539,1756663611004,-2488.54796034,0.00016761,2]
[382544540,1756663611251,-160.0,0.00016766,2]
[382544541,1756663611279,-300.0,0.00016795,2]
[382544542,1756663611311,-500.0,0.00016796,2]
[382544543,1756663611342,-500.0,0.00016796,2]
[382544544,1756663611372,-378.34889128,0.00016796,2]
[382544545,1756663611404,-500.0,0.00016796,2]
[382544546,1756663611596,-470.46599194,0.00016796,2]
[382544547,1756663611627,-480.0,0.00016796,2]
[382544548,1756663611658,-480.0,0.00016796,2]
[382544549,1756663611692,-480.0,0.00016796,2]
[382544550,1756663611722,-315.60801612,0.00016796,2]
[382544551,1756663611974,-235.1249331,0.00016666,2]
[382544552,1756663612005,-547.85198388,0.00016796,2]
[382544553,1756663612034,-1038.79,0.00016796,2]
[382544554,1756663612064,-241.91616604,0.00016796,2]
[382544555,1756663612379,-872.63383396,0.00016796,2]
[382544556,1756663612409,-480.0,0.00016796,2]
[382544557,1756663612438,-500.0,0.00016797,2]
[382544558,1756663612466,-320.96472358,0.00016797,2]
[382544559,1756663612494,-172.80288492,0.00016797,2]
[382544560,1756663612713,-307.19711508,0.00016797,2]
[382544561,1756663612741,-480.0,0.00016797,2]
[382544562,1756663612767,-480.0,0.00016797,2]
[382544563,1756663612795,-192.47779192,0.00016797,2]
[382544564,1756663612823,-480.0,0.00016797,2]
[382544565,1756663612850,-420.260186,0.00016797,2]
[382544566,1756663613000,-280.129814,0.00016797,2]
[382544567,1756663613028,-480.0,0.00016797,2]
[382544568,1756663613056,-1065.21,0.00016797,2]
[382544569,1756663613085,-480.0,0.00016797,2]
[382544570,1756663613310,-480.0,0.00016797,2]
[382544571,1756663613339,-480.0,0.00016797,2]
[382544572,1756663613366,-480.0,0.00016797,2]
[382544573,1756663613396,-480.0,0.00016797,2]
[382544574,1756663613425,-480.0,0.00016797,2]
[382544575,1756663613689,-565.44,0.00016797,2]
[382544576,1756663613720,-499.45047624,0.00016797,2]
[382544577,1756663613866,-480.0,0.00016797,2]
[382544578,1756663613931,-480.0,0.00016797,2]
[382544579,1756663613961,-330.47904752,0.00016797,2]
[382544580,1756663614099,-289.26095248,0.00016797,2]
[382544581,1756663614127,-480.0,0.00016797,2]
[382544582,1756663614159,-504.19,0.00016797,2]
[382544583,1756663614188,-480.0,0.00016797,2]
[382544584,1756663614216,-514.21,0.00016797,2]
[382544585,1756663614527,-1545.76,0.00016797,2]
[382544586,1756663614557,-480.0,0.00016797,2]
[382544587,1756663614587,-120.42,0.00016797,2]
[382544588,1756663614901,-707.64,0.00016797,2]
[382544589,1756663614930,-480.0,0.00016797,2]
[382544590,1756663614958,-480.0,0.00016797,2]
[382544591,1756663614987,-480.0,0.00016797,2]
[382544592,1756663615017,-224.72,0.00016797,2]
[382544593,1756663621364,1705.72306021,0.000165,2]
[382544594,1756663621387,3294.27693979,0.000165,2]
[382544595,1756663633825,-235.12493309,0.00016719,2]
[382544596,1756663633855,-235.12493309,0.00016771,2]
[382544597,1756663633886,-300.0,0.00016796,2]
[382544598,1756663633926,-480.0,0.00016796,2]
[382544599,1756663633954,-255.28,0.00016797,2]
[382544600,1756663633983,-510.56,0.00016797,2]
[382544601,1756663634012,-480.0,0.00016797,2]
[382544602,1756663634334,-500.0,0.00016797,2]
[382544603,1756663634368,-500.0,0.00016797,2]
[382544604,1756663634396,-500.0,0.00016797,2]
[382544605,1756663634424,-500.0,0.00016797,2]
[382544606,1756663634453,-460.21,0.00016797,2]
[382544607,1756663634630,-1157.82492191,0.00016697,2]
[382544608,1756663634883,-2315.64984382,0.00016697,2]
[382544609,1756663637220,5000.0,0.000165,2]
[382544610,1756663637570,-368.70031236,0.00016697,2]
[382544611,1756663637599,-480.0,0.00016796,2]
[382544612,1756663637628,-590.42,0.00016797,2]
[382544613,1756663637656,-480.0,0.00016797,2]
[382544614,1756663637687,-480.0,0.00016797,2]
[382544615,1756663637872,-738.05,0.00016797,2]
[382544616,1756663637903,-837.22,0.00016797,2]
[382544617,1756663637933,-480.0,0.00016797,2]
[382544618,1756663637963,-409.46,0.00016797,2]
[382544619,1756663638103,-70.54,0.00016797,2]
[382544620,1756663638133,-480.0,0.00016797,2]
[382544621,1756663638166,-480.0,0.00016797,2]
[382544622,1756663638198,-1035.09,0.00016797,2]
[382544623,1756663638445,-388.74,0.00016797,2]
[382544624,1756663638889,-91.26,0.00016797,2]
[382544625,1756663638919,-668.82,0.00016797,2]
[382544626,1756663638957,-480.0,0.00016797,2]
[382544627,1756663638987,-1122.9,0.00016797,2]
[382544628,1756663639056,-719.24,0.00016797,2]
[382544629,1756663639086,-505.65,0.00016797,2]
[382544630,1756663639118,-853.26,0.00016797,2]
[382544631,1756663639147,-480.0,0.00016797,2]
[382544632,1756663639180,-480.0,0.00016797,2]
[382544633,1756663639211,-809.58,0.00016797,2]
[382544634,1756663639242,-578.07,0.00016797,2]
[382544635,1756663639276,-80.76,0.00016797,2]
[382544636,1756663639386,-986.89,0.00016797,2]
[382544637,1756663639417,-584.21,0.00016797,2]
[382544638,1756663639447,-480.0,0.00016797,2]
[382544639,1756663639531,-2194.88,0.00016797,2]
[382544640,1756663639560,-496.48,0.00016797,2]
[382544641,1756663639588,-480.0,0.00016797,2]
[382544642,1756663639618,-480.0,0.00016797,2]
[382544643,1756663639647,-480.0,0.00016797,2]
[382544644,1756663639675,-480.0,0.00016797,2]
[382544645,1756663639704,-297.29,0.00016797,2]
[382544646,1756663639891,-182.71,0.00016797,2]
[382544647,1756663639919,-480.0,0.00016797,2]
[382544648,1756663639947,-502.13,0.00016797,2]
[382544649,1756663639974,-515.57,0.00016797,2]
[382544650,1756663640002,-480.0,0.00016797,2]
[382544651,1756663640030,-480.0,0.00016797,2]
[382544652,1756663640058,-480.0,0.00016797,2]
[382544653,1756663640085,-574.07,0.00016797,2]